Cogmind - Beta 10.2 @@@ ROGUE MODE // 2021.08.06 @ 20:58:20 Player: Olga Result: Destroyed by B-86 Titan with Matter Neutralizer Performance ------------- Evolutions (6) 3000 Regions Visited (14) 2800 Robots Destroyed (136) 680 Value Destroyed (6344) 6344 Prototype IDs (26) 520 Alien Tech Used (0) 0 Bonus (1843) 1843 TOTAL SCORE: 15187 Bonus ------- High Alert Combat Kills 639 Follower Combat Kills 268 Entered Garrisons 200 Used RIF Installer 500 Aligned with FarCom 300 Friendly Fire -64 Cogmind --------- Core Integrity 0/1150 Matter 294/300 Energy 164/170 System Corruption 11% Temperature Cool (15) Movement Hovering (52) Location -4/Extension Parts ------- > --- POWER (2) -------- Light Antimatter Reactor > --- PROPULSION (6) --- Improved Antigrav System Improved Antigrav System Improved Antigrav System > --- UTILITY (8) ------ High-capacity Storage Unit Advanced Signal Interpreter Terrain Scan Processor Improved Targeting Computer Advanced Transmission Jammer Core Shielding > --- WEAPON (3) ------- KE Penetrator > --- INVENTORY (12) --- Neutrino Core Flexi-carbon Leg Flexi-carbon Leg Myomer Leg Myomer Leg Myomer Leg Advanced Myomer Leg KE Penetrator Enhanced Gauss Cannon Enhanced Gauss Cannon Enhanced Gauss Cannon Heavy Gauss Cannon Peak State ------------ > --- POWER ------------ Light Antimatter Reactor Light Antimatter Reactor > --- PROPULSION ------- Flexi-carbon Leg Flexi-carbon Leg Myomer Leg Myomer Leg Myomer Leg Advanced Myomer Leg > --- UTILITY ---------- High-capacity Storage Unit Improved Targeting Computer Advanced Transmission Jammer Advanced Thermal Shield EM Shield Advanced Shield Generator Force Field Corruption Screen > --- WEAPON ----------- KE Penetrator Enhanced Gauss Cannon Heavy Gauss Cannon > --- INVENTORY -------- Light Antimatter Reactor Light Antimatter Reactor Flexi-carbon Leg Flexi-carbon Leg Flexi-carbon Leg Advanced Heat Sink Coil Gun Coil Gun Coil Gun Heavy Machine Gun KE Penetrator Enhanced Gauss Cannon [Rating: 118] Favorites ----------- Power Light Antimatter Reactor Engine Ion Engine Power Core Light Nuclear Core Reactor Light Antimatter Reactor Propulsion Aluminum Leg Leg Aluminum Leg Wheel Wheel Hover Unit Improved Antigrav System Utility High-capacity Storage Unit Device Weapon Cycler Storage High-capacity Storage Unit Processor Improved Targeting Computer Protection Improved Medium Armor Plating Weapon Heavy Assault Rifle Energy Gun Plasma Rifle Ballistic Gun Heavy Assault Rifle Ballistic Cannon Heavy Gauss Cannon Launcher Heavy Rocket Launcher Build | -11 -10 -10 -9 -9 -9 -8 -8 -7 -6 -5 -4 -4 -4 -4 ------- Run | Scr Mat Min Mat Min Exi Min Mat Fac Fac Fac Fac Gar Fac Ext Slots Evolved 12 | . . . 2 . . . 2 2 2 2 2 . . . Power 1 | . . . . . . . . . . . 1 . . . Propulsion 4 | . . . 2 . . . . . 2 . . . . . Utility 6 | . . . . . . . 2 2 . 2 . . . . Weapon 1 | . . . . . . . . . . . 1 . . . Parts Attached 224 | . 2 . 6 . 3 1 28 4 27 38 2 32 53 28 Power 20 | . . . . . . . 2 1 2 2 1 3 4 5 Engine 4 | . . . . . . . 1 1 . 1 . 1 . . Core 6 | . . . . . . . 1 . 2 1 1 . . 1 Reactor 10 | . . . . . . . . . . . . 2 4 4 Propulsion 70 | . . . 3 . . . 12 1 7 14 . 10 15 8 Treads . | . . . . . . . . . . . . . . . Leg 61 | . . . 3 . . . 6 1 7 14 . 10 15 5 Wheel 6 | . . . . . . . 6 . . . . . . . Hover 3 | . . . . . . . . . . . . . . 3 Flight . | . . . . . . . . . . . . . . . Utility 77 | . 2 . 1 . 3 1 6 2 13 16 . 7 17 9 Device 46 | . . . . . 1 1 1 1 6 10 . 5 15 6 Storage 11 | . 1 . . . 1 . 2 1 3 3 . . . . Processor 8 | . . . . . . . 1 . . 1 . 2 2 2 Hackware . | . . . . . . . . . . . . . . . Protection 12 | . 1 . 1 . 1 . 2 . 4 2 . . . 1 Artifact . | . . . . . . . . . . . . . . . Weapon 57 | . . . 2 . . . 8 . 5 6 1 12 17 6 Energy Gun 5 | . . . . . . . . . . . . . 5 . Energy Cannon . | . . . . . . . . . . . . . . . Ballistic Gun 36 | . . . 2 . . . 5 . 3 2 1 10 11 2 Ballistic Cannon 10 | . . . . . . . . . 2 3 . . 1 4 Launcher 6 | . . . . . . . 3 . . 1 . 2 . . Special Weapon . | . . . . . . . . . . . . . . . Impact Weapon . | . . . . . . . . . . . . . . . Slashing Weapon . | . . . . . . . . . . . . . . . Piercing Weapon . | . . . . . . . . . . . . . . . Special Melee Weapon . | . . . . . . . . . . . . . . . Unidentified Prototypes 3 | . . . . . . . . . 1 . . . 2 . Parts Lost 102 | . . . 2 . . . 6 . 7 17 . 26 32 12 Power 10 | . . . . . . . 1 . 1 . . 2 3 3 Propulsion 38 | . . . . . . . 5 . 4 9 . 10 10 . Utility 31 | . . . . . . . . . 1 7 . 7 8 8 Weapon 23 | . . . 2 . . . . . 1 1 . 7 11 1 Highest Loss Streak 19 | . . . 1 . . . 3 . 2 4 . 16 19 4 Average Slot Usage (%) 95 | . 95 100 99 100 100 100 94 94 94 94 94 88 94 94 Engine 3 | . 14 14 11 11 11 11 3 1 . 3 . . . . Core 2 | . . . . . . . 5 5 5 1 10 6 . . Reactor 2 | . . . . . . . . . . . . 1 9 9 Leg 32 | . 28 28 44 44 44 44 27 30 35 33 31 28 29 28 Wheel 1 | . . . . . . . 7 . . . . . . . Device 9 | . . . . . . 4 . 5 3 7 10 12 21 25 Storage 12 | . 14 14 11 11 11 11 17 19 16 20 15 11 5 5 Processor 5 | . . . . . . . 9 7 6 5 5 7 11 6 Protection 5 | . 9 14 11 11 10 6 5 7 11 7 5 . . 1 Ballistic Gun 12 | . 28 28 21 22 22 22 17 15 9 5 5 8 10 5 Ballistic Cannon 2 | . . . . . . . . . 3 4 10 3 1 8 Naked Turns . | . . . . . . . . . . . . . . . Heaviest Build 104 | 12 27 27 32 32 48 48 36 72 84 92 102 104 97 101 Greatest Support 145 | 20 20 20 40 40 40 40 40 50 102 112 105 125 135 145 Greatest Overweight (x) 3 | . 1 1 . . 1 1 3 1 1 1 . 1 . 1 Average Overweight (x) . | . . 1 . . . 1 . . . . . . . . Largest Inventory Capacity 18 | 6 12 10 10 10 12 12 12 18 18 18 18 18 12 12 Average Capacity 13 | 6 9 10 10 10 11 12 10 17 18 18 18 16 12 12 Most Carried 18 | 6 8 10 10 10 12 12 11 17 18 18 16 17 12 12 Average Carried 12 | 6 7 8 9 10 11 12 9 13 16 17 15 10 11 11 Final Capacity 18 | 6 10 10 10 10 12 12 10 18 18 18 18 12 12 12 Final Carried 18 | 6 8 10 10 10 12 12 10 17 18 17 15 12 12 12 Class Distribution -------------------- 52% | Scavenger-Mutant 16% | Mutant 14% | Scavenger-Tank 9% | Scavenger-Skirmisher 6% | Scavenger-Gunner Dominant Class ---------------- Mutant | -10/Materials Mutant | -10/Mines Mutant | -9/Materials Scavenger-Mutant | -9/Mines Scavenger-Mutant | -9/Exiles Scavenger-Mutant | -8/Mines Scavenger-Mutant | -8/Materials Scavenger-Mutant | -7/Factory Scavenger-Mutant | -6/Factory Scavenger-Mutant | -5/Factory Scavenger-Skirmisher | -4/Factory Scavenger-Mutant | -4/Garrison Scavenger-Tank | -4/Factory Scavenger-Tank | -4/Extension Resources | -11 -10 -10 -9 -9 -9 -8 -8 -7 -6 -5 -4 -4 -4 -4 ----------- Run | Scr Mat Min Mat Min Exi Min Mat Fac Fac Fac Fac Gar Fac Ext Matter Collected 6195 | 199 . 185 164 . . . 620 44 625 1067 61 1060 939 1231 Remotely 837 | . . . . . . . . . . . . . 283 554 Salvage Created 5791 | . . 175 224 . . . 672 44 597 1021 61 1172 1111 714 Parts 294 | . . 9 20 . . . 47 4 26 58 . 64 43 23 Haulers Intercepted . | . . . . . . . . . . . . . . . Recyclers Shooed 1 | . . . . . . . . . 1 . . . . . Parts Field Recycled . | . . . . . . . . . . . . . . . Retrieved Matter . | . . . . . . . . . . . . . . . Parts Self-Destructed . | . . . . . . . . . . . . . . . Prevented . | . . . . . . . . . . . . . . . Kills | -11 -10 -10 -9 -9 -9 -8 -8 -7 -6 -5 -4 -4 -4 -4 ------- Run | Scr Mat Min Mat Min Exi Min Mat Fac Fac Fac Fac Gar Fac Ext Combat Hostiles Destroyed 129 | . . 4 6 . . . 18 1 11 21 1 35 19 13 Guns 81 | . . 4 6 . . . 15 1 9 10 . 13 16 7 Cannons 22 | . . . . . . . . . 2 6 1 6 1 6 AOE 24 | . . . . . . . 3 . . 5 . 16 . . Classes Destroyed 12 | . . 1 2 . . . 2 1 1 1 . 1 1 2 Worker 1 | . . . . . . . . . . . . . 1 . Builder 3 | . . . . . . . 2 . . . . . . 1 Recycler 1 | . . . . . . . . . . . . . . 1 Watcher 2 | . . . . . . . 1 . . 1 . . . . Swarmer 43 | . . . 2 . . . 9 . . 4 . 20 4 4 Grunt 45 | . . 4 1 . . . 5 . 8 7 . 9 7 4 Brawler 2 | . . . . . . . . . . 1 . 1 . . Duelist 1 | . . . . . . . . . . . . 1 . . Sentry 21 | . . . 3 . . . 4 . 1 3 1 2 3 4 Hunter 8 | . . . . . . . . . 1 3 . 2 2 . Programmer 8 | . . . . . . . . 1 1 3 . . 3 . Behemoth 1 | . . . . . . . . . . . . . . 1 Best Kill Streak 17 | . . 2 2 . . . 5 1 2 5 1 17 7 4 Combat Bots Only 17 | . . 2 2 . . . 3 1 2 4 1 17 7 4 Max Kills in Single Turn 5 | . . 1 1 . . . 2 1 1 2 1 5 2 2 Gunslinging 1 | . . . . . . . . . . . . 1 . . Exploded 4 | . . . . . . . 1 . . 2 . 4 . . Melee . | . . . . . . . . . . . . . . . Uniques/NPCs Destroyed . | . . . . . . . . . . . . . . . Combat | -11 -10 -10 -9 -9 -9 -8 -8 -7 -6 -5 -4 -4 -4 -4 -------- Run | Scr Mat Min Mat Min Exi Min Mat Fac Fac Fac Fac Gar Fac Ext Damage Taken 15367 | . . 222 395 . . . 829 129 1555 3511 116 3268 3600 1742 Core 1868 | . . . 24 . . . 127 17 123 423 . 334 599 221 Absorbed by Shields 1474 | . . . . . . . . 50 111 440 . . 424 449 Core Remaining (%) 87 | 100 . 100 . . . 94 76 97 85 57 . . . . Volleys Fired 397 | . . 16 25 . . . 49 1 61 75 4 60 60 46 Largest 3 | . . 2 2 . . . 2 2 2 2 3 3 3 3 Hottest 183 | . . 40 46 . . . 59 46 76 118 151 157 183 175 Shots Fired 897 | . . 32 47 . . . 97 2 122 143 12 143 160 139 Gun 675 | . . 32 47 . . . 89 2 102 77 4 99 157 66 Cannon 199 | . . . . . . . . . 20 62 8 33 3 73 Launcher 23 | . . . . . . . 8 . . 4 . 11 . . Special . | . . . . . . . . . . . . . . . Kinetic 836 | . . 32 47 . . . 89 2 122 139 12 132 122 139 Thermal 38 | . . . . . . . . . . . . . 38 . Explosive 23 | . . . . . . . 8 . . 4 . 11 . . Electromagnetic . | . . . . . . . . . . . . . . . Robot Hit Streak 33 | . . 7 13 . . . 17 3 33 9 3 18 24 10 Robot Miss Streak 10 | . . 2 2 . . . 4 . 2 2 1 5 2 10 Penetration Max 1 | . . . . . . . . . . 1 . 1 1 1 Secondary Targets 10 | . . . . . . . 2 . 1 . . 3 4 . Max Gunslinging Chain 1 | . . . . . . . 1 . 1 . . 1 1 . Shots Hit Robots 609 | . . 22 34 . . . 64 1 101 102 7 85 122 71 Core Hits 302 | . . 12 12 . . . 36 1 33 46 2 78 57 25 Critical Hits 33 | . . . . . . . 2 1 1 7 4 4 5 9 Critical Kills 16 | . . . . . . . 1 1 . 4 1 3 2 4 Critical Parts Destroyed 14 | . . . . . . . 1 . 1 3 3 . 3 3 Melee Attacks . | . . . . . . . . . . . . . . . Impact . | . . . . . . . . . . . . . . . Slashing . | . . . . . . . . . . . . . . . Piercing . | . . . . . . . . . . . . . . . Sneak Attacks . | . . . . . . . . . . . . . . . Combat Hostiles . | . . . . . . . . . . . . . . . Follow-up Attacks . | . . . . . . . . . . . . . . . Damage Inflicted 15947 | . . 194 383 . . . 1317 21 2013 2887 153 3457 3193 2329 Guns 10480 | . . 194 383 . . . 915 21 1757 1468 47 1628 3082 985 Cannons 3246 | . . . . . . . . . 256 957 106 472 111 1344 Explosions 2138 | . . . . . . . 402 . . 379 . 1357 . . Melee . | . . . . . . . . . . . . . . . Ramming 83 | . . . . . . . . . . 83 . . . . Kinetic 13061 | . . 194 383 . . . 915 21 2013 2425 153 2100 2528 2329 Thermal 665 | . . . . . . . . . . . . . 665 . Explosive 2138 | . . . . . . . 402 . . 379 . 1357 . . Electromagnetic . | . . . . . . . . . . . . . . . Impact . | . . . . . . . . . . . . . . . Slashing . | . . . . . . . . . . . . . . . Piercing . | . . . . . . . . . . . . . . . Highest Corruption 11 | . . . . . . . 2 3 . 8 . . 9 11 Average Corruption 5 | . . . . . . . 2 2 . 4 . . 5 9 Corruption Purged . | . . . . . . . . . . . . . . . Effects 136 | . . . . . . . 18 1 . 35 . . 33 49 Message Errors 34 | . . . . . . . 6 1 . 10 . . 7 10 Matter Fused 16 | . . . . . . . . . . 3 . . 4 9 Heat Flow Errors 18 | . . . . . . . 5 . . 6 . . 4 3 Energy Discharges 16 | . . . . . . . 3 . . 6 . . 4 3 Data Loss (minor) 13 | . . . . . . . 1 . . 2 . . 5 5 Data Loss (major) 6 | . . . . . . . . . . . . . 2 4 Misfires 5 | . . . . . . . . . . 1 . . 1 3 Misdirections 2 | . . . . . . . . . . . . . . 2 Targeting Errors 23 | . . . . . . . 2 . . 7 . . 5 9 Weapon Failures 3 | . . . . . . . 1 . . . . . 1 1 Overload Shots . | . . . . . . . . . . . . . . . Overflow Damage 218 | . . . . . . . 46 . 16 77 . 48 . 31 Projectiles 71 | . . . . . . . . . 16 24 . . . 31 Explosions 147 | . . . . . . . 46 . . 53 . 48 . . Melee . | . . . . . . . . . . . . . . . Knockbacks 19 | . . . . . . . . . 3 8 . 2 . 6 Impact . | . . . . . . . . . . . . . . . Kinetic 19 | . . . . . . . . . 3 8 . 2 . 6 Secondary . | . . . . . . . . . . . . . . . Self-Inflicted Damage 274 | . . . . . . . 75 . . 187 . 12 . . Shots 5 | . . . . . . . 2 . . 2 . 1 . . Rammed 3 | . . . . . . . . . . 3 . . . . Targets Rammed 13 | . . . . . . . . . . 13 . . . . Kicked 10 | . . . . . . . . . . 10 . . . . Crushed . | . . . . . . . . . . . . . . . Highest Temperature 540 | . . 30 17 . . . 170 . 27 242 368 326 540 484 Average Temperature 105 | . . 10 4 . . . 53 . 7 72 222 107 144 150 Received Heat Transfer 2475 | . . 123 102 . . . 225 . 591 551 27 402 338 116 Effects 19 | . . . . . . . . . . . 1 1 8 9 Shutdowns 10 | . . . . . . . . . . . . . 4 6 Energy Bleed 1 | . . . . . . . . . . . . . 1 . Interference 3 | . . . . . . . . . . . . 1 1 1 Matter Decay 3 | . . . . . . . . . . . . . 2 1 Damage (minor) 2 | . . . . . . . . . . . 1 . . 1 Siege Activations . | . . . . . . . . . . . . . . . Robots Corrupted . | . . . . . . . . . . . . . . . Combat Hostiles . | . . . . . . . . . . . . . . . Parts Fried . | . . . . . . . . . . . . . . . Impact Corruptions . | . . . . . . . . . . . . . . . Robots Melted 2 | . . . . . . . . . . . . . 2 . Combat Hostiles 2 | . . . . . . . . . . . . . 2 . Parts Melted 5 | . . . . . . . . . . . . . 5 . Heat Transferred 1387 | . . . . . . . . . . . . . 1387 . Parts Sabotaged . | . . . . . . . . . . . . . . . Parts Stolen . | . . . . . . . . . . . . . . . Parts Stripped . | . . . . . . . . . . . . . . . Power Chain Reactions . | . . . . . . . . . . . . . . . Missiles Intercepted . | . . . . . . . . . . . . . . . Alert | -11 -10 -10 -9 -9 -9 -8 -8 -7 -6 -5 -4 -4 -4 -4 ------- Run | Scr Mat Min Mat Min Exi Min Mat Fac Fac Fac Fac Gar Fac Ext Peak Influence 1038 | . 38 114 202 78 . . 230 73 299 479 275 1038 590 350 Initial 544 | . . 14 . 78 . . . 43 . 35 234 202 544 164 Average 192 | . 9 31 73 78 . . 80 35 87 125 244 779 412 130 Maximum Alert Level 3 | . . . 1 . . . 1 . 1 2 1 3 2 1 Low Security (%) 66 | 100 100 100 98 100 . 100 94 100 94 67 . . . 73 Level 1 17 | . . . 1 . . . 5 . 5 23 100 10 47 26 Level 2 9 | . . . . . . . . . . 8 . 15 52 . Level 3 6 | . . . . . . . . . . . . 73 . . Level 4 . | . . . . . . . . . . . . . . . Level 5 . | . . . . . . . . . . . . . . . High Security . | . . . . . . . . . . . . . . . Max Security . | . . . . . . . . . . . . . . . Squads Dispatched 25 | . 3 . 2 . . . 1 2 3 8 . . 5 1 Investigation 3 | . 1 . . . . . 1 . . . . . 1 . Extermination 9 | . . . . . . . . 2 1 4 . . 2 . Reinforcement 11 | . 2 . 2 . . . . . 2 3 . . 1 1 Assault . | . . . . . . . . . . . . . . . Garrison 2 | . . . . . . . . . . 1 . . 1 . Intercept . | . . . . . . . . . . . . . . . Construction Impeded . | . . . . . . . . . . . . . . . Haulers Reinforced 2 | . . . . . . . . . 2 . . . . . Stealth | -11 -10 -10 -9 -9 -9 -8 -8 -7 -6 -5 -4 -4 -4 -4 --------- Run | Scr Mat Min Mat Min Exi Min Mat Fac Fac Fac Fac Gar Fac Ext Distress Signals 11 | . 1 . 1 . . . 1 . 3 2 . . 1 2 Communications Jammed 60 | . . . . . . . . . . . . . . 60 Distress Signals 60 | . . . . . . . . . . . . . . 60 Times Spotted 205 | . 6 4 17 . . . 23 1 31 31 1 34 25 32 Peak Tracking Total 12 | . 5 2 4 . . . 4 1 7 6 1 12 9 5 Tactical Retreats 18 | . 1 . 1 . . . . . 7 2 . . . 7 Traps | -11 -10 -10 -9 -9 -9 -8 -8 -7 -6 -5 -4 -4 -4 -4 ------- Run | Scr Mat Min Mat Min Exi Min Mat Fac Fac Fac Fac Gar Fac Ext Traps Triggered 13 | . . . . . . . 2 1 2 1 . 2 5 . Indirectly . | . . . . . . . . . . . . . . . Trap Hack Attempts . | . . . . . . . . . . . . . . . Triggered . | . . . . . . . . . . . . . . . Disarmed . | . . . . . . . . . . . . . . . Reprogrammed . | . . . . . . . . . . . . . . . Reused . | . . . . . . . . . . . . . . . Traps Extracted . | . . . . . . . . . . . . . . . Installed . | . . . . . . . . . . . . . . . Triggered . | . . . . . . . . . . . . . . . Machines | -11 -10 -10 -9 -9 -9 -8 -8 -7 -6 -5 -4 -4 -4 -4 ---------- Run | Scr Mat Min Mat Min Exi Min Mat Fac Fac Fac Fac Gar Fac Ext Machines Disabled 17 | . . . . . . . 4 . 1 8 . 1 2 1 Max in Single Turn 6 | . . . . . . . 2 . 1 6 . 1 1 . Garrison Access 3 | . . . . . . . . . . . . . 3 . Machines Sabotaged . | . . . . . . . . . . . . . . . Garrisons Compromised . | . . . . . . . . . . . . . . . Overloaded Fab Kills . | . . . . . . . . . . . . . . . Fab Network Shutdowns . | . . . . . . . . . . . . . . . Hacking | -11 -10 -10 -9 -9 -9 -8 -8 -7 -6 -5 -4 -4 -4 -4 --------- Run | Scr Mat Min Mat Min Exi Min Mat Fac Fac Fac Fac Gar Fac Ext Machines Accessed 35 | . 2 . 1 . 3 . 8 2 . 2 1 . 11 5 Terminals 25 | . 2 . 1 . . . 8 2 . 2 . . 5 5 Fabricators 1 | . . . . . . . . . . . . . 1 . Repair Stations 1 | . . . . . . . . . . . . . 1 . Recycling Units . | . . . . . . . . . . . . . . . Scanalyzers 1 | . . . . . . . . . . . . . 1 . Garrison Access 4 | . . . . . . . . . . . 1 . 3 . Total Hacks 66 | . 4 . 1 . 4 . 14 2 . 6 2 . 25 8 Successful 27 | . 1 . 1 . 4 . 3 . . 2 1 . 14 1 Failed 39 | . 3 . . . . . 11 2 . 4 1 . 11 7 Catastrophic 11 | . . . . . . . 3 1 . . . . 5 2 Database Lockouts . | . . . . . . . . . . . . . . . Manual 25 | . 4 . 1 . 1 . 13 . . 1 . . 4 1 Terminals 43 | . 4 . 1 . . . 14 2 . 6 . . 8 8 Fabricators 3 | . . . . . . . . . . . . . 3 . Repair Stations 4 | . . . . . . . . . . . . . 4 . Recycling Units . | . . . . . . . . . . . . . . . Scanalyzers 7 | . . . . . . . . . . . . . 7 . Garrison Access 5 | . . . . . . . . . . . 2 . 3 . Terminal Hacks 12 | . 1 . 1 . 4 . 3 . . 2 . . . 1 Record 4 | . . . . . 3 . . . . 1 . . . . Open Door 1 | . . . . . . . . . . . . . . 1 Level Access Points 1 | . . . . . . . 1 . . . . . . . Branch Access Points 3 | . 1 . 1 . . . 1 . . . . . . . Unreport Threat 2 | . . . . . . . 1 . . 1 . . . . EX-Prototype ID Bank 1 | . . . . . 1 . . . . . . . . . Fabricator Hacks 2 | . . . . . . . . . . . . . 2 . Load Schematic 1 | . . . . . . . . . . . . . 1 . Build 1 | . . . . . . . . . . . . . 1 . Repair Station Hacks 2 | . . . . . . . . . . . . . 2 . Scan Component 1 | . . . . . . . . . . . . . 1 . Repair 1 | . . . . . . . . . . . . . 1 . Recycling Unit Hacks . | . . . . . . . . . . . . . . . Scanalyzer 7 | . . . . . . . . . . . . . 7 . Insert Component 4 | . . . . . . . . . . . . . 4 . Analyze 3 | . . . . . . . . . . . . . 3 . Garrison Access Hacks 4 | . . . . . . . . . . . 1 . 3 . Unlock Access 1 | . . . . . . . . . . . 1 . . . Seal Access 3 | . . . . . . . . . . . . . 3 . Unauthorized Hacks . | . . . . . . . . . . . . . . . Terminals . | . . . . . . . . . . . . . . . Fabricators . | . . . . . . . . . . . . . . . Repair Stations . | . . . . . . . . . . . . . . . Recycling Units . | . . . . . . . . . . . . . . . Scanalyzers . | . . . . . . . . . . . . . . . Garrison Access . | . . . . . . . . . . . . . . . Data Cores Recovered . | . . . . . . . . . . . . . . . Used . | . . . . . . . . . . . . . . . Hacking Detections 26 | . 2 . 1 . . . 8 2 . 2 1 . 6 4 Full Trace Events 2 | . 1 . . . . . . . . . . . 1 . Feedback Events . | . . . . . . . . . . . . . . . Feedback Blocked . | . . . . . . . . . . . . . . . Robot Schematics Acquired . | . . . . . . . . . . . . . . . Robots Built . | . . . . . . . . . . . . . . . Matter . | . . . . . . . . . . . . . . . Time . | . . . . . . . . . . . . . . . Total Robot Build Rating . | . . . . . . . . . . . . . . . Part Schematics Acquired 2 | . . . . . . . . . . . . . 2 . Parts Built 2 | . . . . . . . . . . . . . 2 . Matter 212 | . . . . . . . . . . . . . 212 . Time 106 | . . . . . . . . . . . . . 106 . Total Part Build Rating 12 | . . . . . . . . . . . . . 12 . Parts Repaired 1 | . . . . . . . . . . . . . 1 . Time 38 | . . . . . . . . . . . . . 38 . Parts Recycled . | . . . . . . . . . . . . . . . Recycled Matter . | . . . . . . . . . . . . . . . Retrieved Matter . | . . . . . . . . . . . . . . . Retrieved Components . | . . . . . . . . . . . . . . . Parts Scanalyzed 2 | . . . . . . . . . . . . . 2 . Part Schematics Acquired 2 | . . . . . . . . . . . . . 2 . Parts Damaged . | . . . . . . . . . . . . . . . Bothacking | -11 -10 -10 -9 -9 -9 -8 -8 -7 -6 -5 -4 -4 -4 -4 ------------ Run | Scr Mat Min Mat Min Exi Min Mat Fac Fac Fac Fac Gar Fac Ext Used RIF Installer 1 | . . . . . . . . . . . . 1 . . Robots Hacked . | . . . . . . . . . . . . . . . Non-combat . | . . . . . . . . . . . . . . . Combat . | . . . . . . . . . . . . . . . Robot Hacks Applied . | . . . . . . . . . . . . . . . Relay Couplers Released . | . . . . . . . . . . . . . . . Robots Rewired 6 | . . . . . . . . . . . . . . 6 Allies Hacked . | . . . . . . . . . . . . . . . Hacks Repelled . | . . . . . . . . . . . . . . . Allies | -11 -10 -10 -9 -9 -9 -8 -8 -7 -6 -5 -4 -4 -4 -4 -------- Run | Scr Mat Min Mat Min Exi Min Mat Fac Fac Fac Fac Gar Fac Ext Total Allies 13 | . . . . . . . . . . . . . 3 10 Largest Group 5 | . . . . . . . . . . . . . 3 5 Highest-Rated Group 217 | . . . . . . . . . . . . . 138 217 Highest-Rated Ally 49 | . . . . . . . . . . . . . 46 49 Total Orders 34 | . . . . . 2 2 3 . 6 12 2 5 . 2 ROAM 1 | . . . . . . . . . 1 . . . . . FOLLOW 1 | . . . . . . . . . . . . . . 1 AID 1 | . . . . . . . . . . . . . . 1 EXPLORE 26 | . . . . . 1 1 2 . 5 12 2 3 . . RETURN 5 | . . . . . 1 1 1 . . . . 2 . . Ally Attacks 75 | . . . . . . . . . . . . . 11 64 Total Damage 1978 | . . . . . . . . . . . . . 445 1533 Kills 6 | . . . . . . . . . . . . . 2 4 Allies Corrupted 1 | . . . . . . . . . . 1 . . . . Allies Melted . | . . . . . . . . . . . . . . . Intel | -11 -10 -10 -9 -9 -9 -8 -8 -7 -6 -5 -4 -4 -4 -4 ------- Run | Scr Mat Min Mat Min Exi Min Mat Fac Fac Fac Fac Gar Fac Ext Robot Analysis Total . | . . . . . . . . . . . . . . . Derelict Logs Recovered 2 | . . 2 . . . . . . . . . . . . Drone Launches 25 | . . . . . 1 1 2 . 4 12 2 3 . . Drone Recoveries 19 | . . . . . 1 1 1 . 2 10 1 3 . . Exploration | -11 -10 -10 -9 -9 -9 -8 -8 -7 -6 -5 -4 -4 -4 -4 ------------- Run | Scr Mat Min Mat Min Exi Min Mat Fac Fac Fac Fac Gar Fac Ext Turns Passed 12741 | 12 286 445 720 178 1058 215 1683 506 1479 1538 70 957 1622 1972 Spaces Moved 7360 | 11 182 251 470 148 716 136 733 319 811 695 45 528 1015 1300 Core . | . . . . . . . . . . . . . . . Treads . | . . . . . . . . . . . . . . . Legs 6968 | 11 182 251 470 148 716 136 533 319 811 695 45 528 1015 1108 Wheels 200 | . . . . . . . 200 . . . . . . . Hover 192 | . . . . . . . . . . . . . . 192 Flight . | . . . . . . . . . . . . . . . Fastest Speed 52 | 120 120 150 120 120 120 150 80 120 121 120 121 120 120 52 Average Speed 125 | 120 148 150 120 120 145 150 110 149 130 122 121 121 120 114 Slowest Speed 210 | 120 150 150 120 120 150 150 210 152 153 152 121 150 120 120 Overloaded Moves . | . . . . . . . . . . . . . . . Propulsion Burnouts . | . . . . . . . . . . . . . . . Robots Hopped . | . . . . . . . . . . . . . . . Cave-ins Triggered 1 | . . . . . . . . . . . . . . 1 Exploration Rate (%) 40 | 3 42 54 44 39 93 78 47 9 21 25 11 70 31 44 Regions Visited 14 Branch Regions 5 Pre-discovered Areas 1 | . . 1 . . . . . . . . . . . . Known Exits Taken 8 | . 1 . 1 . . 1 1 1 1 1 1 . . . Unknown Exits Taken 5 | 1 . 1 . 1 1 . . . . . . . 1 . Scrap Searched 4 | . . 2 . 2 . . . . . . . . . . Spaces Dug 20 | . . . . . . . . . . . . 20 . . Terrain Destroyed 288 | . . . . . . . 64 . 1 61 4 105 5 48 Melee . | . . . . . . . . . . . . . . . Projectile 73 | . . . . . . . . . 1 8 4 7 5 48 AOE 215 | . . . . . . . 64 . . 53 . 98 . . Terrain Rammed . | . . . . . . . . . . . . . . . Walls Destroyed . | . . . . . . . . . . . . . . . Machines Disabled . | . . . . . . . . . . . . . . . Actions | -11 -10 -10 -9 -9 -9 -8 -8 -7 -6 -5 -4 -4 -4 -4 --------- Run | Scr Mat Min Mat Min Exi Min Mat Fac Fac Fac Fac Gar Fac Ext Total 10177 | 10 199 294 589 149 730 147 1512 347 1112 1255 53 777 1313 1690 Wait 1754 | . 10 16 70 . 9 11 665 13 174 381 2 104 120 179 Move 7347 | 10 181 250 469 147 715 135 732 318 810 694 45 527 1014 1300 Hop . | . . . . . . . . . . . . . . . Pick Up 192 | . 4 7 11 1 2 . 20 9 21 30 . 32 42 13 Fast Attach 41 | . 1 . . . . . 3 . 4 6 . 1 14 12 Attach 109 | . 1 . 4 . . . 8 2 15 15 2 26 27 9 Detach 14 | . . . . . . . . 1 4 1 . 1 . 7 Swap 74 | . . . 2 . 3 1 17 2 8 17 . 5 12 7 Drop 127 | . 2 5 8 1 1 . 18 1 11 23 . 11 22 24 Fire 397 | . . 16 25 . . . 49 1 61 75 4 60 60 46 Melee . | . . . . . . . . . . . . . . . Ram . | . . . . . . . . . . . . . . . Kick 13 | . . . . . . . . . . 13 . . . . Crush . | . . . . . . . . . . . . . . . Escape Stasis 8 | . . . . . . . . . . . . 6 2 . Rewire 101 | . . . . . . . . . 4 . . 4 . 93 Trap . | . . . . . . . . . . . . . . . Miscellaneous . | . . . . . . . . . . . . . . . Route ------- -11/Scrapyard -10/Materials (discovered 3 exits: *Mat / *Min x2) -10/Mines -9/Materials (discovered 4 exits: Mat / *Min / *Sto x2) -9/Mines -9/Exiles (discovered 2 exits: [*Min x2]) -8/Mines (discovered 2 exits: *Mat x2) -8/Materials (discovered 3 exits: *Fac x3) -7/Factory -6/Factory -5/Factory -4/Factory -4/Garrison (discovered 3 exits: *Fac x3) -4/Factory (discovered 3 exits: *Res x2 / *Ext) -4/Extension History --------- Turn | Location | Event 1 | -11/Scrapyard | Discovered new exit (range 3) 13 | -11/Scrapyard | Entered Materials 112 | -10/Materials | Identified exit to Mines 240 | -10/Materials | Discovered new exit (range 14) 299 | -10/Materials | Entered Mines 311 | -10/Mines | Build established: Mutant 366 | -10/Mines | Met a Derelict bent on vengeance 409 | -10/Mines | Learned 2 Materials zone layouts 494 | -10/Mines | Learned location of Storage (-9) 715 | -10/Mines | Learned location of 1 exit from Materials 717 | -10/Mines | Discovered new exit (range 7) 744 | -10/Mines | Entered Materials 744 | -9/Materials | Evolved 2 slots: Propulsion x2 745 | -9/Materials | Identified exit to Materials 746 | -9/Materials | Identified exit to Storage 878 | -9/Materials | Discovered exit to Storage (range 7) 1450 | -9/Materials | Identified exit to Mines 1464 | -9/Materials | Entered Mines 1636 | -9/Mines | Deemed a non-threat by the Exiles lab entrance 1638 | -9/Mines | Discovered new exit (range 5) 1642 | -9/Mines | Entered Exiles 1658 | -9/Exiles | Discovered new exit (range 15) 1670 | -9/Exiles | Build established: Scavenger-Mutant 1672 | -9/Exiles | Met 8R-AWN 1693 | -9/Exiles | Met EX-HEX 1848 | -9/Exiles | Met EX-DEC 1893 | -9/Exiles | Visited The Gauntlet 2166 | -9/Exiles | Discovered new exit (range 14) 2264 | -9/Exiles | Met EX-BIN 2285 | -9/Exiles | Aligned with FarCom system 2286 | -9/Exiles | Given EX-Vault access code 2321 | -9/Exiles | Opened EX-Vault 2382 | -9/Exiles | Warned to stay clear of 0b10 Research branches 2516 | -9/Exiles | Found Supersonic Drone Bay 2700 | -9/Exiles | Left Exiles lab with Supersonic Drone Bay 2700 | -9/Exiles | Entered Mines 2837 | -8/Mines | Discovered exit to Materials (range 41) 2838 | -8/Mines | Discovered exit to Materials (range 32) 2915 | -8/Mines | Entered Materials 2915 | -8/Materials | Evolved 2 slots: Utility x2 3638 | -8/Materials | Lost 3 parts (1p2n) 4203 | -8/Materials | Identified exit to Factory 4598 | -8/Materials | Entered Factory 4598 | -7/Factory | Evolved 2 slots: Utility x2 4945 | -7/Factory | Discovered new exit (range 15) 5000 | -7/Factory | Identified exit to Factory 5104 | -7/Factory | Entered another Factory area 5104 | -6/Factory | Evolved 2 slots: Propulsion x2 6001 | -6/Factory | Build established: Mutant 6341 | -6/Factory | Discovered new exit (range 23) 6385 | -6/Factory | Build established: Scavenger-Mutant 6395 | -6/Factory | Identified exit to Factory 6583 | -6/Factory | Entered another Factory area 6583 | -5/Factory | Evolved 2 slots: Utility x2 7585 | -5/Factory | Lost 4 parts (2n2u) 7628 | -5/Factory | Build established: Mutant 7694 | -5/Factory | Lost 4 parts (4n) 7970 | -5/Factory | Garrison activated, responded to threat 7999 | -5/Factory | Build established: Scavenger-Mutant 8047 | -5/Factory | Discovered new exit (range 37) 8120 | -5/Factory | Identified exit to Factory 8121 | -5/Factory | Entered another Factory area 8121 | -4/Factory | Evolved 2 slots: Power x1, Weapon x1 8191 | -4/Factory | Identified exit to Garrison 8191 | -4/Factory | Entered Garrison 8198 | -4/Garrison | Triggered checkpoint 8280 | -4/Garrison | Triggered checkpoint 8280 | -4/Garrison | Triggered checkpoint 8356 | -4/Garrison | Destroyed 17 combat bots 8361 | -4/Garrison | Lost 6 parts (3n2u1w) 8422 | -4/Garrison | Build established: Scavenger-Skirmisher 8467 | -4/Garrison | Triggered checkpoint 8491 | -4/Garrison | Destroyed 7 combat bots 8544 | -4/Garrison | Discovered new exit (range 15) 8688 | -4/Garrison | Triggered checkpoint 8726 | -4/Garrison | Discovered new exit (range 11) 8737 | -4/Garrison | Identified exit to Factory 8752 | -4/Garrison | Build established: Scavenger-Mutant 8802 | -4/Garrison | Triggered checkpoint 8835 | -4/Garrison | Triggered checkpoint 8893 | -4/Garrison | Lost 16 parts (2p6n3u5w) 9018 | -4/Garrison | Triggered checkpoint 9103 | -4/Garrison | Discovered exit to Factory (range 15) 9143 | -4/Garrison | Installed Relay Interface Framework 9148 | -4/Garrison | Entered Factory 9196 | -4/Factory | Build established: Scavenger-Gunner 9530 | -4/Factory | Lost 6 parts (2n4w) 9600 | -4/Factory | Discovered new exit (range 5) 9602 | -4/Factory | Garrison activated, responded to threat 9607 | -4/Factory | Identified exit to Research 9643 | -4/Factory | Core integrity fell below 50% 9708 | -4/Factory | Destroyed 7 combat bots 9711 | -4/Factory | Lost 19 parts (3p6n4u6w) 10330 | -4/Factory | Core integrity fell below 20% 10374 | -4/Factory | Build established: Scavenger-Tank 10422 | -4/Factory | Fabricated KE Penetrator? 10441 | -4/Factory | Allied Derelicts emerged from ambush trap array 10507 | -4/Factory | Discovered exit to Research (range 18) 10723 | -4/Factory | Repaired Lrn. Tractor Beam 10741 | -4/Factory | Discovered new exit (range 14) 10770 | -4/Factory | Entered Extension 10770 | -4/Extension | Accompanied by 3 allies 10946 | -4/Extension | Spotted B-86 Titan 11195 | -4/Extension | Rescued a captive Derelict 11196 | -4/Extension | Rescued a captive Derelict 11237 | -4/Extension | Rescued a captive Derelict 11243 | -4/Extension | Rescued a captive Derelict 12190 | -4/Extension | Crushed by falling debris 12190 | -4/Extension | System corruption reached 10% 12193 | -4/Extension | Spotted B-86 Titan 12194 | -4/Extension | Destroyed B-86 Titan 12203 | -4/Extension | Build established: Scavenger-Skirmisher 12221 | -4/Extension | Lost 3 parts (3u) 12565 | -4/Extension | Lost 4 parts (2p1u1w) 12742 | -4/Extension | Destroyed by B-86 Titan with Matter Neutralizer Last Messages --------------- 12616_ System corrupted: Heat flow error (+231). 12649_ U-05 Engineer exits Transfer Station. 12649_ R-10 Processor exits Transfer Station. 12654_ T-07 Excavator exits Transfer Station. 12654_ K-01 Serf exits Transfer Station. 12661_ U-05 Engineer enters Transfer Station. 12662_ Acquired 6 matter. 12663_ 3N9UYTOKNWHSIG=SM/7CFHNNWK5BL 12686_ Acquired Neutrino Core. 12688_ Dropped Flexi-carbon Leg. 12689_ Acquired Flexi-carbon Leg. 12692_ Dropped Terrain Scanner. 12724_ System corrupted: FCS attempts to trigger KE Penetrator. 12724_ System corrupted: KE Penetrator targeting data glitched. 12724_ System corrupted: KE Penetrator misfires. 12724_ Slug penetrates Terminal. 12738_ Acquired 86 matter. 12741_ Acquired 2 matter. [Achievement: 10k Club] [Achievement: Just Browsing] Map ----- +----------------------------------------------------+ | #??#??##????#????????#??????????????????????????? | | ##########?#????#??????????#??#??????????????????? | | ### !=!##?????#????##???#????#??#??????????????? | | #?# ]##################?????#????????????????? | | ### !+ #??????????????????????? | | ###[ ############# #?####?#???????????????? | | #?# ####???#?##?# ###???#????????????????? | | ### ##?#???###?## ##?????????????????????? | | ##########?####??#??# ###??#?????????????????? | | ##################### ####?#???#?????????????? | | !###?????##?????????????? | | ##################### ##????#????????????????? | | ## #?##?#??#???###### ##?????##??????????????? | | ##?# #??#??#????#?#??# [*##???#?????????????????? | | ##?## ######??####???# [#????#??#??????????????? | | ?##?####?####????#####+##%#????????? ???????????? | | #?????????#???##?# #*##?#???##??????????????? | | ?##?#??#???#??# # / #%###?#??????????????????? | | ##?##???????#????# * // +%# ####?????????????????? | | ?#?####???##?????# / ! # #!#?####???????????????? | | ###??###?####?#??# %#[###????#?# ????????????? | | #??##?###???####?# # #?##?###???????????????? | | #?##?###?###??###########!#?#?????#? ????????????? | | ?##??###?#?#?####??####%# ### #??????????????????? | | ?????##??#?##?#?????#####!### ## #???????????????? | | ###???#?#?###????#????#"%@" ""?????????????? | | [|#?#?##??#???####?#??# % " ????????????? | | ! ##?#?#?######?##?#??# % ???????????? | | = #??####?#?#?#?##???## [!% RRR R ???????????? | | +######################!%= ???????????? | | % =!= ????????????? | | % % %% ???????????? | | ??????????? | | % ???????????? | | k ???????????? | | ####################### BB ????????????? | | #??#####?###????#???### BB ????????????? | | ##?#??####?#??#?????#?# ??????????????? | | ?#??#??#?????#?#???#?## ????????????????? | | ###?#?#???#?##????#??## ?? ????????????????? | | ##??#?????##???#????#??#####??"??????????????????? | | ?????????####???#?????##?????????????????????????? | | ????##??#??##?????#?#????????????????????????????? | | | | | | | | | | | | | | | +----------------------------------------------------+ Best States ------------- Heat Dissipation 81 Energy Generation 37 Energy Capacity 460 Matter Stores 370 Matter Capacity 400 Sight Range 22 Terrain Scan Range 14 Terrain Scan Density 85 Jamming Range 16 Cloak Strength 2 Corruption Prevention 20 Armor Coverage 450 Resistance: KI 20 Resistance: TH 30 Resistance: EM 25 Core Shielding 20 Point Defense Rating 160 Weapon Cycling 30 Phase Shifting 10 Evasion (%) 54 Targeting Accuracy 18 Item Schematics ----------------- Flexi-carbon Leg | -4/Factory | Scanalyzed KE Penetrator | -4/Factory | Scanalyzed Robot Schematics ------------------ None Fabricated ------------ KE Penetrator | x2 | -4/Factory Alien Tech Used ----------------- None Achievements -------------- 10k Club Just Browsing Just What I Needed Respectable Loadout Use The Force Challenges ------------ None Game ------ Seed InertialDeuteriumBuckler Manual? 0 Play Time 02:58:30 Cumulative 25.9 hours Start 2021.08.06 @ 17:57:07 End 2021.08.06 @ 20:58:20 Sessions 1 Manual Loads 0 Difficulty Rogue Special Mode None Game No. 36 Rogue 36 Adventurer 0 Explorer 0 Win Type - Total 0 Types 0/0/0/0/0/0/0/0/0 Lore% 21 Gallery% 27 Achievement% 19 Wizard Run 0 Options --------- ASCII 1 Keyboard 0 Movement Vi Keybinds 0 Fullscreen 2 Font 24/Smallcaps Map View 76x50 Tactical HUD 1 Map Filters NONE Filters NONE Steam 1 RUN: 0ed54cfa-7e56-44d7-930f-d82e4f348d41